lending/lending_fUSD_20250121
["ID","MTS","AMOUNT","RATE_DAILY","PERIOD"]
[349802155,1737436243162,-441.5,0.00020729,2]
[349802157,1737436243170,-500.0,0.00020729,2]
[349802159,1737436243180,-901.69,0.00020729,2]
[349802161,1737436243189,-500.0,0.00020729,2]
[349802163,1737436243198,-500.0,0.00020729,2]
[349802165,1737436243207,-749.33,0.00020729,2]
[349802166,1737436243216,-502.38,0.00020729,2]
[349802168,1737436243225,-500.0,0.00020729,2]
[349802170,1737436243234,-500.0,0.00020729,2]
[349802172,1737436243243,-500.0,0.00020729,2]
[349802174,1737436243253,-888.87,0.00020729,2]
[349802176,1737436243262,-625.85,0.00020729,2]
[349802178,1737436243271,-1014.26,0.00020729,2]
[349802180,1737436243280,-218.15754561,0.00020729,2]
[349802182,1737436243289,-500.0,0.00020729,2]
[349802184,1737436243301,-601.34,0.00020729,2]
[349802186,1737436243310,-500.0,0.00020729,2]
[349802188,1737436243319,-500.0,0.00020729,2]
[349802190,1737436243328,-500.0,0.00020729,2]
[349802192,1737436243338,-573.48,0.00020729,2]
[349802194,1737436243346,-571.52,0.00020729,2]
[349802196,1737436243356,-622.22,0.00020729,2]
[349802198,1737436243365,-500.0,0.00020729,2]
[349802200,1737436243374,-536.24,0.00020729,2]
[349802202,1737436243383,-950.99,0.00020729,2]
[349802204,1737436243393,-500.0,0.00020729,2]
[349802206,1737436243402,-500.0,0.00020729,2]
[349802208,1737436243411,-500.0,0.00020729,2]
[349802210,1737436243421,-715.53,0.00020729,2]
[349802212,1737436243430,-1202.66,0.00020729,2]
[349802214,1737436243440,-500.0,0.00020729,2]
[349802216,1737436243449,-786.22,0.00020729,2]
[349802218,1737436243459,-500.0,0.00020729,2]
[349802220,1737436243469,-787.58,0.00020729,2]
[349802222,1737436243478,-500.0,0.00020729,2]
[349802224,1737436243487,-500.0,0.00020729,2]
[349802226,1737436243497,-500.0,0.00020729,2]
[349802228,1737436243506,-500.0,0.00020729,2]
[349802230,1737436243515,-500.0,0.00020729,2]
[349802232,1737436243525,-500.0,0.00020729,2]
[349802234,1737436243535,-822.88,0.00020729,2]
[349802253,1737436243702,-500.0,0.00020729,2]
[349802255,1737436243712,-500.0,0.00020729,2]
[349802257,1737436243722,-500.0,0.00020729,2]
[349802259,1737436243731,-500.0,0.00020729,2]
[349802261,1737436243741,-588.14,0.00020729,2]
[349802263,1737436243755,-625.42,0.00020729,2]
[349802265,1737436243764,-500.0,0.00020729,2]
[349802267,1737436243773,-500.0,0.00020729,2]
[349802269,1737436243783,-500.0,0.00020729,2]
[349802271,1737436243794,-500.0,0.00020729,2]
[349802273,1737436243803,-500.0,0.00020729,2]
[349802275,1737436243813,-500.0,0.00020729,2]
[349802277,1737436243825,-500.0,0.00020729,2]
[349802279,1737436243834,-500.0,0.00020729,2]
[349802281,1737436243843,-500.0,0.00020729,2]
[349802283,1737436243853,-500.0,0.00020729,2]
[349802285,1737436243862,-500.0,0.00020729,2]
[349802287,1737436243871,-500.0,0.00020729,2]
[349802289,1737436243881,-500.0,0.00020729,2]
[349802291,1737436243890,-630.42,0.00020729,2]
[349802293,1737436243899,-500.0,0.00020729,2]
[349802295,1737436243909,-500.0,0.00020729,2]
[349802297,1737436243918,-650.02,0.00020729,2]
[349802299,1737436243927,-925.58,0.00020729,2]
[349802301,1737436243936,-1680.22,0.00020729,2]
[349802303,1737436243945,-500.0,0.00020729,2]
[349802305,1737436243954,-535.61,0.00020729,2]
[349802307,1737436243964,-500.0,0.00020729,2]
[349802309,1737436243974,-500.0,0.00020729,2]
[349802311,1737436243983,-500.0,0.00020729,2]
[349802313,1737436243992,-500.0,0.00020729,2]
[349802315,1737436244002,-500.0,0.00020729,2]
[349802317,1737436244011,-694.47,0.00020729,2]
[349802319,1737436244020,-500.0,0.00020729,2]
[349802321,1737436244029,-500.0,0.00020729,2]
[349802323,1737436244038,-824.38,0.00020729,2]
[349802325,1737436244048,-500.0,0.00020729,2]
[349802327,1737436244057,-855.28,0.00020729,2]
[349802329,1737436244068,-500.0,0.00020729,2]
[349802331,1737436244077,-675.39,0.00020729,2]
[349802333,1737436244086,-500.0,0.00020729,2]
[349802335,1737436244095,-500.0,0.00020729,2]
[349802337,1737436244104,-500.0,0.00020729,2]
[349802339,1737436244114,-500.0,0.0002073,2]
[349802341,1737436244123,-300.0,0.0002073,2]
[349802343,1737436244133,-500.0,0.0002073,2]
[349802345,1737436244142,-500.0,0.0002073,2]
[349802347,1737436244151,-500.0,0.0002073,2]
[349802349,1737436244160,-198.49,0.0002073,2]
[349802351,1737436244169,-161.06,0.0002073,2]
[349802353,1737436244178,-203.7636252,0.0002073,2]
[349802355,1737436244188,-955.57,0.0002073,2]
[349802357,1737436244197,-500.0,0.0002073,2]
[349802359,1737436244206,-500.0,0.0002073,2]
[349802361,1737436244216,-500.0,0.0002073,2]
[349802363,1737436244225,-500.0,0.00020737,2]
[349802365,1737436244235,-832.2786074,0.00020737,2]
[349802367,1737436244244,-902.49,0.00020774,2]
[349802369,1737436244253,-309.46528946,0.00020834,2]
[349802371,1737436244262,-161.476,0.000209,2]
[349802372,1737436244271,-300.0,0.000209,7]
[349802373,1737436244280,-832.2786074,0.0002097,2]
[349802374,1737436244290,-309.46528946,0.00020987,2]
[349802375,1737436244301,-11394.0,0.00021,7]
[349802376,1737436244311,-700.0,0.00021,7]
[349802377,1737436244320,-162.11636,0.00021003,2]
[349802378,1737436244329,-500.0,0.00021003,2]
[349802379,1737436244339,-500.0,0.00021003,2]
[349802380,1737436244348,-500.0,0.00021003,2]
[349802381,1737436244357,-463.8,0.00021003,2]
[349802382,1737436244367,-500.0,0.00021003,2]
[349802383,1737436244376,-500.0,0.00021003,2]
[349802384,1737436244386,-469.21470787,0.00021003,2]
[349802385,1737436244396,-602.66,0.00021003,2]
[349802386,1737436244405,-500.0,0.00021003,2]
[349802387,1737436244415,-500.0,0.00021003,2]
[349802388,1737436244424,-500.0,0.00021003,2]
[349802390,1737436244434,-901.69,0.00021003,2]
[349802392,1737436244443,-500.0,0.00021003,2]
[349802394,1737436244452,-500.0,0.00021003,2]
[349802396,1737436244462,-749.33,0.00021003,2]
[349802398,1737436244472,-502.38,0.00021003,2]
[349802400,1737436244481,-500.0,0.00021003,2]
[349802402,1737436244491,-500.0,0.00021003,2]
[349802404,1737436244500,-500.0,0.00021003,2]
[349802406,1737436244510,-888.87,0.00021003,2]
[349802408,1737436244520,-625.85,0.00021003,2]
[349802410,1737436244531,-1014.26,0.00021003,2]
[349802412,1737436244541,-500.0,0.00021003,2]
[349802415,1737436244553,-601.34,0.00021003,2]
[349802416,1737436244562,-500.0,0.00021003,2]
[349802419,1737436244572,-500.0,0.00021003,2]
[349802421,1737436244582,-500.0,0.00021003,2]
[349802423,1737436244592,-573.48,0.00021003,2]
[349802424,1737436244601,-571.52,0.00021003,2]
[349802426,1737436244610,-622.22,0.00021003,2]
[349802428,1737436244620,-500.0,0.00021003,2]
[349802430,1737436244629,-536.24,0.00021003,2]
[349802432,1737436244638,-950.99,0.00021003,2]
[349802434,1737436244648,-500.0,0.00021003,2]
[349802436,1737436244657,-500.0,0.00021003,2]
[349802438,1737436244666,-500.0,0.00021003,2]
[349802440,1737436244676,-715.53,0.00021003,2]
[349802442,1737436244685,-1202.66,0.00021003,2]
[349802444,1737436244694,-500.0,0.00021003,2]
[349802446,1737436244704,-786.22,0.00021003,2]
[349802448,1737436244714,-500.0,0.00021003,2]
[349802450,1737436244724,-787.58,0.00021003,2]
[349802452,1737436244733,-500.0,0.00021003,2]
[349802454,1737436244742,-500.0,0.00021003,2]
[349802456,1737436244755,-500.0,0.00021003,2]
[349802458,1737436244765,-500.0,0.00021003,2]
[349802460,1737436244775,-500.0,0.00021003,2]
[349802462,1737436244784,-500.0,0.00021003,2]
[349802464,1737436244795,-822.88,0.00021003,2]
[349802466,1737436244804,-500.0,0.00021003,2]
[349802468,1737436244813,-500.0,0.00021003,2]
[349802470,1737436244823,-500.0,0.00021003,2]
[349802472,1737436244833,-500.0,0.00021003,2]
[349802474,1737436244842,-588.14,0.00021003,2]
[349802476,1737436244852,-625.42,0.00021003,2]
[349802478,1737436244861,-500.0,0.00021003,2]
[349802480,1737436244870,-500.0,0.00021003,2]
[349802482,1737436244879,-500.0,0.00021003,2]
[349802484,1737436244888,-500.0,0.00021003,2]
[349802486,1737436244898,-500.0,0.00021003,2]
[349802488,1737436244908,-500.0,0.00021003,2]
[349802490,1737436244917,-500.0,0.00021003,2]
[349802492,1737436244926,-500.0,0.00021003,2]
[349802493,1737436244935,-500.0,0.00021003,2]
[349802495,1737436244945,-500.0,0.00021003,2]
[349802497,1737436244954,-500.0,0.00021003,2]
[349802499,1737436244963,-500.0,0.00021003,2]
[349802501,1737436244973,-500.0,0.00021003,2]
[349802503,1737436244982,-630.42,0.00021003,2]
[349802505,1737436244992,-500.0,0.00021003,2]
[349802507,1737436245002,-500.0,0.00021003,2]
[349802509,1737436245011,-650.02,0.00021003,2]
[349802511,1737436245021,-925.58,0.00021003,2]
[349802513,1737436245030,-1680.22,0.00021003,2]
[349802515,1737436245040,-500.0,0.00021003,2]
[349802517,1737436245051,-535.61,0.00021003,2]
[349802519,1737436245060,-500.0,0.00021003,2]
[349802521,1737436245070,-500.0,0.00021003,2]
[349802523,1737436245081,-500.0,0.00021003,2]
[349802525,1737436245090,-500.0,0.00021003,2]
[349802527,1737436245100,-500.0,0.00021003,2]
[349802529,1737436245109,-694.47,0.00021003,2]
[349802531,1737436245118,-500.0,0.00021003,2]
[349802533,1737436245128,-500.0,0.00021003,2]
[349802535,1737436245138,-824.38,0.00021003,2]
[349802537,1737436245148,-500.0,0.00021003,2]
[349802539,1737436245158,-855.28,0.00021003,2]
[349802541,1737436245167,-500.0,0.00021003,2]
[349802543,1737436245177,-675.39,0.00021003,2]
[349802545,1737436245188,-500.0,0.00021003,2]
[349802547,1737436245198,-500.0,0.00021003,2]
[349802549,1737436245207,-500.0,0.00021004,2]
[349802551,1737436245216,-343.79809026,0.00021004,2]
[349802553,1737436245226,-500.0,0.00021004,2]
[349802555,1737436245235,-500.0,0.00021004,2]
[349802557,1737436245244,-500.0,0.00021004,2]
[349802559,1737436245253,-955.57,0.00021004,2]
[349802561,1737436245262,-500.0,0.00021004,2]
[349802563,1737436245271,-426.99078184,0.00021004,2]
[349802565,1737436245281,-500.0,0.00021004,2]
[349802567,1737436245290,-1100.0,0.000211,7]
[349802569,1737436245300,-309.46528946,0.00021139,2]
[349802571,1737436245310,-710.9607,0.00021178,2]
[349802573,1737436245319,-1400.0,0.000212,7]
[349802575,1737436245328,-832.2786074,0.00021202,2]
[349802577,1737436245337,-168.111227,0.00021277,2]
[349802579,1737436245346,-500.0,0.00021277,2]
[349802581,1737436245355,-500.0,0.00021277,2]
[349802583,1737436245365,-162.54634,0.00021277,2]
[349802585,1737436245374,-500.0,0.00021277,2]
[349802587,1737436245384,-500.0,0.00021277,2]
[349802589,1737436245394,-468.55042281,0.00021277,2]
[349802591,1737436245403,-602.66,0.00021277,2]
[349802593,1737436245412,-500.0,0.00021277,2]
[349802595,1737436245421,-500.0,0.00021277,2]
[349802597,1737436245430,-500.0,0.00021277,2]
[349802599,1737436245440,-901.69,0.00021277,2]
[349802601,1737436245449,-500.0,0.00021277,2]
[349802603,1737436245460,-500.0,0.00021277,2]
[349802605,1737436245469,-749.33,0.00021277,2]
[349802607,1737436245479,-502.38,0.00021277,2]
[349802609,1737436245488,-337.45154407,0.00021277,2]
[349802611,1737436245497,-500.0,0.00021277,2]
[349802614,1737436245506,-500.0,0.00021277,2]
[349802616,1737436245516,-888.87,0.00021277,2]
[349802618,1737436245527,-625.85,0.00021277,2]
[349802620,1737436245536,-1014.26,0.00021277,2]
[349802622,1737436245545,-500.0,0.00021277,2]
[349802625,1737436245555,-601.34,0.00021277,2]
[349802627,1737436245564,-500.0,0.00021277,2]
[349802629,1737436245574,-500.0,0.00021277,2]
[349802631,1737436245583,-500.0,0.00021277,2]
[349802633,1737436245593,-573.48,0.00021277,2]
[349802635,1737436245602,-571.52,0.00021277,2]
[349802637,1737436245611,-622.22,0.00021277,2]
[349802639,1737436245620,-500.0,0.00021277,2]
[349802641,1737436245630,-536.24,0.00021277,2]
[349802643,1737436245639,-950.99,0.00021277,2]
[349802645,1737436245648,-500.0,0.00021277,2]
[349802647,1737436245657,-500.0,0.00021277,2]
[349802649,1737436245667,-500.0,0.00021277,2]
[349802652,1737436245676,-715.53,0.00021277,2]
[349802655,1737436245686,-1202.66,0.00021277,2]
[349802657,1737436245695,-500.0,0.00021277,2]
[349802660,1737436245704,-786.22,0.00021277,2]
[349802663,1737436245714,-500.0,0.00021277,2]
[349802665,1737436245723,-787.58,0.00021277,2]
[349802667,1737436245732,-500.0,0.00021277,2]
[349802669,1737436245742,-500.0,0.00021277,2]
[349802671,1737436245755,-500.0,0.00021277,2]
[349802673,1737436245764,-500.0,0.00021277,2]
[349802675,1737436245773,-500.0,0.00021277,2]
[349802677,1737436245782,-500.0,0.00021277,2]
[349802679,1737436245792,-822.88,0.00021277,2]
[349802681,1737436245802,-500.0,0.00021277,2]
[349802683,1737436245811,-500.0,0.00021277,2]
[349802685,1737436245820,-500.0,0.00021277,2]
[349802687,1737436245831,-500.0,0.00021277,2]
[349802689,1737436245841,-588.14,0.00021277,2]
[349802691,1737436245850,-625.42,0.00021277,2]
[349802693,1737436245859,-500.0,0.00021277,2]
[349802695,1737436245868,-578.77574129,0.00021277,2]
[349802697,1737436245878,-516.0816383,0.00021277,2]
[349802699,1737436245887,-500.0,0.00021277,2]
[349802701,1737436245897,-500.0,0.00021277,2]
[349802703,1737436245906,-500.0,0.00021277,2]
[349802705,1737436245915,-500.0,0.00021277,2]
[349802707,1737436245925,-500.0,0.00021277,2]
[349802709,1737436245934,-500.0,0.00021277,2]
[349802711,1737436245943,-500.0,0.00021277,2]
[349802713,1737436245952,-500.0,0.00021277,2]
[349802715,1737436245961,-500.0,0.00021277,2]
[349802717,1737436245970,-500.0,0.00021277,2]
[349802719,1737436245979,-630.42,0.00021277,2]
[349802721,1737436245988,-500.0,0.00021277,2]
[349802723,1737436245997,-500.0,0.00021277,2]
[349802725,1737436246006,-650.02,0.00021277,2]
[349802731,1737436246060,-925.58,0.00021277,2]
[349802733,1737436246070,-1680.22,0.00021277,2]
[349802735,1737436246079,-500.0,0.00021277,2]
[349802737,1737436246088,-535.61,0.00021277,2]
[349802739,1737436246098,-500.0,0.00021277,2]
[349802741,1737436246108,-500.0,0.00021277,2]
[349802743,1737436246117,-500.0,0.00021277,2]
[349802745,1737436246126,-525.68,0.00021277,2]
[349802747,1737436246135,-500.0,0.00021277,2]
[349802749,1737436246144,-694.47,0.00021277,2]
[349802751,1737436246153,-500.0,0.00021277,2]
[349802753,1737436246162,-500.0,0.00021277,2]
[349802755,1737436246171,-824.38,0.00021277,2]
[349802757,1737436246180,-500.0,0.00021277,2]
[349802759,1737436246189,-855.28,0.00021277,2]
[349802761,1737436246199,-500.0,0.00021277,2]
[349802763,1737436246208,-675.39,0.00021277,2]
[349802765,1737436246217,-500.0,0.00021278,2]
[349802767,1737436246226,-500.0,0.00021278,2]
[349802769,1737436246235,-245.66,0.00021278,2]
[349802771,1737436246244,-955.57,0.00021278,2]
[349802773,1737436246253,-500.0,0.00021278,2]
[349802775,1737436246262,-500.0,0.00021278,2]
[349802777,1737436246271,-309.46528946,0.00021291,2]
[349802779,1737436246280,-1800.0,0.000213,7]
[349802781,1737436246290,-300.0,0.000214,7]
[349802783,1737436246302,-876.8,0.00021408,2]
[349802785,1737436246311,-1561.73,0.00021408,2]
[349802787,1737436246320,-152.0,0.00021425,4]
[349802788,1737436246330,-3902.0,0.00021425,2]
[349802790,1737436246339,-1180.691,0.00021425,2]
[349802793,1737436246349,-151.224,0.00021425,2]
[349802795,1737436246358,-832.2786074,0.00021435,2]
[349802797,1737436246368,-309.46528946,0.00021443,2]
[349802799,1737436246377,-300.0,0.000215,7]
[349802801,1737436246387,-500.0,0.00021551,2]
[349802802,1737436246396,-500.0,0.00021551,2]
[349802804,1737436246405,-500.0,0.00021551,2]
[349802806,1737436246415,-500.0,0.00021551,2]
[349802808,1737436246424,-602.66,0.00021551,2]
[349802810,1737436246433,-500.0,0.00021551,2]
[349802812,1737436246442,-500.0,0.00021551,2]
[349802814,1737436246451,-500.0,0.00021551,2]
[349802816,1737436246461,-901.69,0.00021551,2]
[349802819,1737436246471,-500.0,0.00021551,2]
[349802821,1737436246481,-500.0,0.00021551,2]
[349802822,1737436246490,-749.33,0.00021551,2]
[349802825,1737436246499,-502.38,0.00021551,2]
[349802826,1737436246509,-500.0,0.00021551,2]
[349802829,1737436246519,-500.0,0.00021551,2]
[349802830,1737436246528,-888.87,0.00021551,2]
[349802832,1737436246537,-625.85,0.00021551,2]
[349802834,1737436246548,-1014.26,0.00021551,2]
[349802836,1737436246558,-500.0,0.00021551,2]
[349802838,1737436246567,-601.34,0.00021551,2]
[349802841,1737436246577,-500.0,0.00021551,2]
[349802842,1737436246586,-500.0,0.00021551,2]
[349802844,1737436246595,-500.0,0.00021551,2]
[349802846,1737436246604,-573.48,0.00021551,2]
[349802848,1737436246613,-571.52,0.00021551,2]
[349802850,1737436246622,-622.22,0.00021551,2]
[349802852,1737436246631,-500.0,0.00021551,2]
[349802854,1737436246640,-536.24,0.00021551,2]
[349802856,1737436246649,-950.99,0.00021551,2]
[349802858,1737436246658,-500.0,0.00021551,2]
[349802860,1737436246668,-500.0,0.00021551,2]
[349802862,1737436246677,-500.0,0.00021551,2]
[349802864,1737436246686,-715.53,0.00021551,2]
[349802866,1737436246695,-1202.66,0.00021551,2]
[349802868,1737436246705,-500.0,0.00021551,2]
[349802870,1737436246714,-786.22,0.00021551,2]
[349802872,1737436246723,-500.0,0.00021551,2]
[349802874,1737436246732,-787.58,0.00021551,2]
[349802876,1737436246741,-500.0,0.00021551,2]
[349802878,1737436246753,-500.0,0.00021551,2]
[349802880,1737436246761,-500.0,0.00021551,2]
[349802882,1737436246770,-500.0,0.00021551,2]
[349802884,1737436246779,-500.0,0.00021551,2]
[349802886,1737436246789,-500.0,0.00021551,2]
[349802888,1737436246799,-822.88,0.00021551,2]
[349802890,1737436246808,-500.0,0.00021551,2]
[349802891,1737436246817,-500.0,0.00021551,2]
[349802892,1737436246828,-500.0,0.00021551,2]
[349802893,1737436246837,-500.0,0.00021551,2]
[349802894,1737436246845,-588.14,0.00021551,2]
[349802895,1737436246854,-625.42,0.00021551,2]
[349802896,1737436246863,-500.0,0.00021551,2]
[349802897,1737436246872,-500.0,0.00021551,2]
[349802898,1737436246881,-500.0,0.00021551,2]
[349802899,1737436246890,-500.0,0.00021551,2]
[349802900,1737436246899,-500.0,0.00021551,2]
[349802901,1737436246909,-500.0,0.00021551,2]
[349802902,1737436246918,-500.0,0.00021551,2]
[349802903,1737436246927,-537.12578115,0.00021551,2]
[349802904,1737436246936,-500.0,0.00021551,2]
[349802905,1737436246945,-500.0,0.00021551,2]
[349802906,1737436246954,-500.0,0.00021551,2]
[349802907,1737436246963,-630.42,0.00021551,2]
[349802908,1737436246973,-500.0,0.00021551,2]
[349802909,1737436246982,-500.0,0.00021551,2]
[349802910,1737436246991,-650.02,0.00021551,2]
[349802912,1737436247000,-925.58,0.00021551,2]
[349802913,1737436247009,-1680.22,0.00021551,2]
[349802915,1737436247019,-500.0,0.00021551,2]
[349802917,1737436247027,-535.61,0.00021551,2]
[349802919,1737436247037,-500.0,0.00021551,2]
[349802921,1737436247047,-500.0,0.00021551,2]
[349802923,1737436247056,-500.0,0.00021551,2]
[349802925,1737436247065,-500.0,0.00021551,2]
[349802927,1737436247074,-694.47,0.00021551,2]
[349802929,1737436247083,-500.0,0.00021551,2]
[349802931,1737436247093,-500.0,0.00021551,2]
[349802933,1737436247102,-824.38,0.00021551,2]
[349802935,1737436247111,-500.0,0.00021551,2]
[349802937,1737436247120,-855.28,0.00021551,2]
[349802939,1737436247129,-500.0,0.00021551,2]
[349802941,1737436247139,-675.39,0.00021551,2]
[349802943,1737436247148,-500.0,0.00021552,2]
[349802944,1737436247157,-500.0,0.00021552,2]
[349802946,1737436247166,-955.57,0.00021552,2]
[349802948,1737436247175,-500.0,0.00021552,2]
[349802950,1737436247184,-305.85024159,0.00021552,2]
[349802952,1737436247193,-887.8741759,0.0002156,2]
[349802954,1737436247202,-309.46528946,0.00021596,2]
[349802956,1737436247212,-300.0,0.000216,7]
[349802958,1737436247222,-1000.0,0.000216,2]
[349802960,1737436247231,-2169.94068655,0.00021622,2]
[349802962,1737436247240,-681.29,0.00021627,30]
[349802964,1737436247249,-832.2786074,0.00021667,2]
[349802966,1737436247258,-4234.81,0.00021685,7]
[349802968,1737436247267,-4234.81,0.00021685,7]
[349802970,1737436247276,-4234.81,0.00021685,7]
[349802972,1737436247286,-4234.81,0.00021685,7]
[349802974,1737436247296,-300.0,0.000217,7]
[349802976,1737436247306,-1632.0,0.000217,2]
[349802978,1737436247315,-587.0,0.00021718,2]
[349802980,1737436247324,-150.0,0.00021723,2]
[349802982,1737436247333,-150.0,0.00021732,2]
[349802984,1737436247342,-150.0,0.00021732,2]
[349802986,1737436247351,-284.15094489,0.00021734,2]
[349802988,1737436247360,-150.0,0.00021738,2]
[349802990,1737436247370,-200.0,0.00021744,2]
[349802991,1737436247379,-162.67,0.00021747,2]
[349802993,1737436247388,-309.46528946,0.00021748,2]
[349802995,1737436247398,-865.31687626,0.00021748,2]
[349802997,1737436247407,-150.0,0.00021752,2]
[349802999,1737436247416,-150.0,0.00021752,2]
[349803001,1737436247425,-178.86203412,0.00021754,2]
[349803003,1737436247435,-865.31687626,0.00021754,2]
[349803005,1737436247443,-150.0,0.0002177,2]
[349803007,1737436247453,-150.0,0.00021776,2]
[349803009,1737436247462,-150.0,0.00021778,2]
[349803011,1737436247471,-150.0,0.00021782,2]
[349803013,1737436247480,-1000.0,0.00021788,2]
[349803015,1737436247489,-150.0,0.00021789,2]
[349803017,1737436247498,-284.15094489,0.00021794,2]
[349803019,1737436247508,-150.0,0.00021794,2]
[349803021,1737436247518,-284.15094489,0.00021795,2]
[349803023,1737436247527,-910.0,0.000218,7]
[349803025,1737436247536,-399608.95144865,0.000218,3]
[349803027,1737436247547,-1009.0,0.000218,2]
[349803029,1737436247557,-865.31687626,0.000218,2]
[349803031,1737436247566,-150.0,0.00021808,2]
[349803033,1737436247576,-1000.0,0.00021811,2]
[349803035,1737436247585,-1000.0,0.00021812,2]
[349803037,1737436247595,-150.0,0.00021823,2]
[349803038,1737436247605,-500.0,0.00021824,2]
[349803040,1737436247615,-500.0,0.00021825,2]
[349803042,1737436247624,-500.0,0.00021825,2]
[349803044,1737436247634,-500.0,0.00021825,2]
[349803046,1737436247643,-500.0,0.00021825,2]
[349803048,1737436247652,-602.66,0.00021825,2]
[349803050,1737436247661,-500.0,0.00021825,2]
[349803052,1737436247670,-500.0,0.00021825,2]
[349803054,1737436247680,-500.0,0.00021825,2]
[349803056,1737436247690,-901.69,0.00021825,2]
[349803058,1737436247699,-500.0,0.00021825,2]
[349803060,1737436247709,-500.0,0.00021825,2]
[349803062,1737436247718,-749.33,0.00021825,2]
[349803064,1737436247727,-502.38,0.00021825,2]
[349803066,1737436247736,-500.0,0.00021825,2]
[349803068,1737436247746,-182.12,0.00021825,2]
[349803070,1737436247758,-888.87,0.00021825,2]
[349803071,1737436247767,-625.85,0.00021825,2]
[349803073,1737436247776,-1014.26,0.00021825,2]
[349803075,1737436247785,-500.0,0.00021825,2]
[349803077,1737436247795,-601.34,0.00021825,2]
[349803079,1737436247804,-500.0,0.00021825,2]
[349803081,1737436247813,-500.0,0.00021825,2]
[349803083,1737436247822,-500.0,0.00021825,2]
[349803084,1737436247832,-573.48,0.00021825,2]
[349803086,1737436247841,-571.52,0.00021825,2]
[349803088,1737436247851,-622.22,0.00021825,2]
[349803090,1737436247860,-500.0,0.00021825,2]
[349803092,1737436247869,-536.24,0.00021825,2]
[349803094,1737436247879,-950.99,0.00021825,2]
[349803096,1737436247888,-500.0,0.00021825,2]
[349803098,1737436247897,-500.0,0.00021825,2]
[349803100,1737436247906,-500.0,0.00021825,2]
[349803102,1737436247917,-715.53,0.00021825,2]
[349803104,1737436247927,-1202.66,0.00021825,2]
[349803106,1737436247936,-500.0,0.00021825,2]
[349803108,1737436247946,-786.22,0.00021825,2]
[349803110,1737436247955,-500.0,0.00021825,2]
[349803112,1737436247965,-787.58,0.00021825,2]
[349803114,1737436247974,-395.76222254,0.00021825,2]
[349803116,1737436247984,-500.0,0.00021825,2]
[349803118,1737436247993,-500.0,0.00021825,2]
[349803120,1737436248003,-500.0,0.00021825,2]
[349803122,1737436248014,-500.0,0.00021825,2]
[349803124,1737436248024,-500.0,0.00021825,2]
[349803126,1737436248034,-822.88,0.00021825,2]
[349803128,1737436248045,-500.0,0.00021825,2]
[349803130,1737436248055,-500.0,0.00021825,2]
[349803132,1737436248065,-500.0,0.00021825,2]
[349803134,1737436248074,-500.0,0.00021825,2]